fUST/lending_fUST_20260307
["ID","MTS","AMOUNT","RATE_DAILY","PERIOD"]
[407871298,1772860566493,-151.0,3.12e-05,30]
[407871299,1772860566823,-151.0,3.12e-05,30]
[407871300,1772860567330,-151.0,3.12e-05,30]
[407871301,1772860567843,-151.0,3.12e-05,30]
[407871302,1772860568309,-151.0,3.12e-05,30]
[407871303,1772860568810,-151.0,3.12e-05,30]
[407871304,1772860569198,-151.0,3.12e-05,30]
[407871305,1772860569625,-151.0,3.12e-05,30]
[407871306,1772860570516,-151.0,3.12e-05,30]
[407871307,1772860570901,-151.0,3.12e-05,30]
[407871308,1772860571133,-151.0,3.12e-05,30]
[407871309,1772860571985,-151.0,3.12e-05,30]
[407871310,1772860572116,-151.0,3.12e-05,30]
[407871311,1772860572425,-151.0,3.12e-05,30]
[407871312,1772860572621,-151.0,3.12e-05,30]
[407871313,1772860573725,-91.0,3.12e-05,30]
[407871314,1772860573747,-60.0,3.13e-05,30]
[407871315,1772860573819,-151.0,3.13e-05,30]
[407871316,1772860574059,-151.0,3.13e-05,30]
[407871317,1772860574362,-151.0,3.13e-05,30]
[407871318,1772860574690,-151.0,3.13e-05,30]
[407871319,1772860574998,-151.0,3.13e-05,30]
[407871320,1772860575310,-151.0,3.13e-05,30]
[407871321,1772860575912,-151.0,3.13e-05,30]
[407871322,1772860575947,-151.0,3.13e-05,30]
[407871323,1772860576252,-151.0,3.13e-05,30]
[407871324,1772860576552,-151.0,3.13e-05,30]
[407871325,1772860577189,-151.0,3.13e-05,30]
[407871326,1772860577434,-151.0,3.13e-05,30]
[407871327,1772860577745,-151.0,3.13e-05,30]
[407871328,1772860578336,-151.0,3.13e-05,30]
[407871329,1772860578410,-151.0,3.13e-05,30]
[407871330,1772860578928,-151.0,3.13e-05,30]
[407871331,1772860579284,-151.0,3.13e-05,30]
[407871332,1772860579810,-151.0,3.13e-05,30]
[407871333,1772860580134,-151.0,3.13e-05,30]
[407871334,1772860580651,-71.0,3.13e-05,30]
[407871335,1772860580672,-80.0,3.14e-05,30]
[407871336,1772860582251,-151.0,3.14e-05,30]
[407871337,1772860583173,-151.0,3.14e-05,30]
[407871338,1772860583590,-151.0,3.14e-05,30]
[407871339,1772860584738,-151.0,3.14e-05,30]
[407871340,1772860584779,-151.0,3.14e-05,30]
[407871341,1772860585133,-151.0,3.14e-05,30]
[407871342,1772860585634,-151.0,3.14e-05,30]
[407871343,1772860585965,-151.0,3.14e-05,30]
[407871344,1772860586486,-151.0,3.14e-05,30]
[407871345,1772860587166,-151.0,3.14e-05,30]
[407871346,1772860587764,-151.0,3.14e-05,30]
[407871347,1772860588079,-151.0,3.14e-05,30]
[407871348,1772860588724,-151.0,3.14e-05,30]
[407871349,1772860589045,-151.0,3.14e-05,30]
[407871350,1772860589384,-151.0,3.14e-05,30]
[407871351,1772860589775,-151.0,3.14e-05,30]
[407871352,1772860590043,-151.0,3.14e-05,30]
[407871353,1772860590742,-151.0,3.14e-05,30]
[407871354,1772860590902,-151.0,3.14e-05,30]
[407871355,1772860591437,-151.0,3.14e-05,30]
[407871356,1772860591754,-151.0,3.14e-05,30]
[407871357,1772860592160,-151.0,3.14e-05,30]
[407871358,1772860592502,-151.0,3.14e-05,30]
[407871359,1772860592804,-151.0,3.14e-05,30]
[407871360,1772860593343,-151.0,3.14e-05,30]
[407871361,1772860593670,-151.0,3.14e-05,30]
[407871362,1772860594202,-151.0,3.14e-05,30]
[407871363,1772860594512,-151.0,3.14e-05,30]
[407871364,1772860595566,-151.0,3.14e-05,30]
[407871365,1772860595623,-151.0,3.14e-05,30]
[407871366,1772860596194,-151.0,3.14e-05,30]
[407871367,1772860599742,-151.0,3.14e-05,30]
[407871368,1772860600963,-151.0,3.14e-05,30]
[407871369,1772860634996,-151.0,3.14e-05,30]
[407871370,1772860636290,-6.902108,3.14e-05,30]
[407871371,1772860809191,-151.0,2.26e-05,2]
[407871380,1772861424796,-16.4654178,2.193e-05,2]
[407871381,1772861424837,-1002.58659949,2.193e-05,2]
[407871382,1772861424846,-16.4654178,2.226e-05,2]
[407871420,1772861432046,-370.38004757,2.226e-05,2]
[407871421,1772861432056,-1663.12388398,2.237e-05,2]
[407871422,1772861432067,-366.35510992,2.323e-05,2]
[407871813,1772861441656,-29.1994669,2.323e-05,2]
[407871815,1772861441667,-104.44542318,2.323e-05,2]
[407871817,1772861441677,-500.0,2.323e-05,2]
[407871819,1772861441686,-414.60659411,2.323e-05,2]
[407871849,1772861446971,-85.39340589,2.323e-05,2]
[407871850,1772861446980,-500.0,2.323e-05,2]
[407871851,1772861446989,-500.0,2.323e-05,2]
[407871852,1772861446998,-500.0,2.323e-05,2]
[407871853,1772861447007,-500.0,2.323e-05,2]
[407871854,1772861447016,-3177.47095802,2.329e-05,2]
[407871855,1772861557166,-2000.0,2.253e-05,2]
[407871856,1772861558331,-2000.0,2.253e-05,2]
[407871857,1772861558885,-1000.0,2.253e-05,2]
[407871858,1772861558904,-1000.0,2.276e-05,2]
[407871859,1772861559056,-1768.73782397,2.276e-05,2]
[407871860,1772861559076,-225.0,2.298e-05,2]
[407871861,1772861559096,-6.26217603,2.299e-05,2]
[407871862,1772861560200,-2000.0,2.299e-05,2]
[407871863,1772861560258,-285.54683059,2.299e-05,2]
[407871864,1772861560277,-500.0,2.323e-05,2]
[407871865,1772861560297,-500.0,2.323e-05,2]
[407871866,1772861560319,-500.0,2.323e-05,2]
[407871867,1772861560340,-214.45316941,2.323e-05,2]
[407871868,1772861560373,-285.54683059,2.323e-05,2]
[407871869,1772861560396,-500.0,2.323e-05,2]
[407871870,1772861560419,-1136.2523168,2.334e-05,2]
[407871871,1772861560439,-78.20085261,2.35e-05,2]
[407871872,1772861560733,-2000.0,2.35e-05,2]
[407871873,1772861561172,-2000.0,2.35e-05,2]
[407871874,1772861561625,-2000.0,2.35e-05,2]
[407871875,1772861561959,-2000.0,2.35e-05,2]
[407871876,1772861562298,-2000.0,2.35e-05,2]
[407871877,1772861562720,-2000.0,2.35e-05,2]
[407871878,1772861563163,-2000.0,2.35e-05,2]
[407871879,1772861563497,-2000.0,2.35e-05,2]
[407871880,1772861563814,-2000.0,2.35e-05,2]
[407871881,1772861564228,-2000.0,2.35e-05,2]
[407871882,1772861564577,-2000.0,2.35e-05,2]
[407871883,1772861565024,-2000.0,2.35e-05,2]
[407871884,1772861565441,-2000.0,2.35e-05,2]
[407871885,1772861566041,-2000.0,2.35e-05,2]
[407871886,1772861566468,-2000.0,2.35e-05,2]
[407871887,1772861566781,-2000.0,2.35e-05,2]
[407871888,1772861568243,-2000.0,2.35e-05,2]
[407871889,1772861568293,-2000.0,2.35e-05,2]
[407871890,1772861568346,-2000.0,2.35e-05,2]
[407871891,1772861568405,-2000.0,2.35e-05,2]
[407871892,1772861568690,-2000.0,2.35e-05,2]
[407871893,1772861569103,-2000.0,2.35e-05,2]
[407871894,1772861569559,-2000.0,2.35e-05,2]
[407871895,1772861569969,-2000.0,2.35e-05,2]
[407871896,1772861570319,-2000.0,2.35e-05,2]
[407871897,1772861570739,-2000.0,2.35e-05,2]
[407871898,1772861571239,-2000.0,2.35e-05,2]
[407871899,1772861571572,-2000.0,2.35e-05,2]
[407871900,1772861571999,-2000.0,2.35e-05,2]
[407871901,1772861572498,-2000.0,2.35e-05,2]
[407871902,1772861573036,-2000.0,2.35e-05,2]
[407871903,1772861573372,-2000.0,2.35e-05,2]
[407871904,1772861573782,-2000.0,2.35e-05,2]
[407871905,1772861574083,-2000.0,2.35e-05,2]
[407871906,1772861574481,-2000.0,2.35e-05,2]
[407871907,1772861574803,-2000.0,2.35e-05,2]
[407871908,1772861575221,-2000.0,2.35e-05,2]
[407871909,1772861575680,-2000.0,2.35e-05,2]
[407871910,1772861576135,-2000.0,2.35e-05,2]
[407871911,1772861576431,-2000.0,2.35e-05,2]
[407871912,1772861576861,-2000.0,2.35e-05,2]
[407871913,1772861577307,-2000.0,2.326e-05,2]
[407871914,1772861579387,-650.65233403,2.326e-05,2]
[407871915,1772861579410,-1349.34766597,2.35e-05,2]
[407871916,1772861580846,-2000.0,2.35e-05,2]
[407871917,1772861581967,-2000.0,2.35e-05,2]
[407871918,1772861583116,-2000.0,2.35e-05,2]
[407871919,1772861627381,-2000.0,2.253e-05,2]
[407871920,1772861628428,-2000.0,2.253e-05,2]
[407871921,1772861628887,-1000.0,2.253e-05,2]
[407871922,1772861628906,-1000.0,2.276e-05,2]
[407871923,1772861629329,-2000.0,2.276e-05,2]
[407871924,1772861629743,-1434.77655716,2.276e-05,2]
[407871925,1772861629762,-565.22344284,2.299e-05,2]
[407871926,1772861630182,-2000.0,2.299e-05,2]
[407871927,1772861630475,-2000.0,2.299e-05,2]
[407871928,1772861630920,-434.77655716,2.299e-05,2]
[407871929,1772861630942,-500.0,2.323e-05,2]
[407871930,1772861630963,-383.27509438,2.336e-05,2]
[407871931,1772861630983,-681.94834846,2.349e-05,2]
[407871932,1772861631243,-2000.0,2.349e-05,2]
[407871933,1772861631944,-2000.0,2.349e-05,2]
[407871934,1772861632263,-2000.0,2.349e-05,2]
[407871935,1772861632917,-2000.0,2.349e-05,2]
[407871936,1772861633093,-2000.0,2.349e-05,2]
[407871937,1772861633553,-2000.0,2.349e-05,2]
[407871938,1772861634974,-2000.0,2.349e-05,2]
[407871939,1772861635272,-2000.0,2.349e-05,2]
[407871940,1772861635360,-1626.00177884,2.349e-05,2]
[407871941,1772861635380,-373.99822116,2.35e-05,2]
[407871942,1772861637122,-2000.0,2.326e-05,2]
[407871943,1772861637556,-2000.0,2.326e-05,2]
[407871944,1772861637995,-649.20758225,2.326e-05,2]
[407871945,1772861638018,-1350.79241775,2.35e-05,2]
[407871946,1772861638468,-2000.0,2.35e-05,2]
[407871947,1772861638901,-2000.0,2.35e-05,2]
[407871948,1772861639319,-2000.0,2.35e-05,2]
[407871949,1772861640389,-2000.0,2.35e-05,2]
[407871950,1772861640764,-2000.0,2.35e-05,2]
[407871951,1772861641224,-2000.0,2.35e-05,2]
[407871952,1772861642767,-300.0,2.349e-05,2]
[407871953,1772861642790,-1700.0,2.35e-05,2]
[407871954,1772861643891,-2000.0,2.35e-05,2]
[407871955,1772861644348,-2000.0,2.35e-05,2]
[407871956,1772861644774,-2000.0,2.35e-05,2]
[407871957,1772861646577,-2000.0,2.35e-05,2]
[407871958,1772861646624,-2000.0,2.35e-05,2]
[407871959,1772861649782,-2000.0,2.35e-05,2]
[407871960,1772861650856,-2000.0,2.35e-05,2]
[407871961,1772861651840,-2000.0,2.35e-05,2]
[407871962,1772861662960,-500.0,2.35e-05,2]
[407871963,1772861684899,-19300.0,2.35e-05,2]
[407871964,1772861749444,-1800.0,2.28e-05,2]
[407871965,1772861803310,-1245.34500909,2.28e-05,2]
[407871966,1772861870425,-5000.0,2.303e-05,2]
[407871967,1772861875910,-300.0,2.325e-05,2]
[407871968,1772861875932,-2454.65499091,2.326e-05,2]
[407871998,1772862632113,-300.0,2.146e-05,2]
[407872284,1772862638305,-1341.25548051,2.146e-05,2]
[407872454,1772862641573,-31.78043716,2.14e-05,2]
[407872928,1772862646164,-468.21956284,2.14e-05,2]
[407872930,1772862646174,-531.74,2.14e-05,2]
[407872932,1772862646185,-2588.8591207,2.146e-05,2]
[407872934,1772862646194,-392.08433065,2.157e-05,2]
[407872936,1772862646203,-1200.0,2.167e-05,2]
[407872937,1772862646213,-5000.0,2.168e-05,2]
[407872939,1772862646222,-300.0,2.21e-05,2]
[407872942,1772862646236,-852.1892376,2.336e-05,2]
[407872944,1772862646246,-6925.92365406,2.35e-05,2]
[407872948,1772862646274,-1257.42635663,2.35e-05,2]
[407873491,1772862797871,3926.6730378,1.322e-05,2]
[407873492,1772862875324,-151.0,3.1e-05,30]
[407873493,1772862883533,-151.0,3.1e-05,30]
[407873494,1772863046232,5000.0,2e-05,2]
[407873495,1772863069943,151.0,2e-05,2]
[407873497,1772863227818,5000.0,2e-05,2]
[407873498,1772863267973,1000.0,2e-05,2]
[407873500,1772863308146,864.69403247,2e-05,2]
[407873501,1772863320539,500.0,2e-05,2]
[407873502,1772863327847,218.8624642,1.424e-05,2]
[407873505,1772863621758,499.5034847,1.256e-05,2]
[407873506,1772863633736,2838.888937,2e-05,2]
[407873543,1772863832299,-399.10462479,2.04e-05,2]
[407873545,1772863832309,-300.0,2.129e-05,2]
[407873547,1772863832318,-300.0,2.129e-05,2]
[407873549,1772863832328,-300.0,2.129e-05,2]
[407873551,1772863832337,-300.0,2.129e-05,2]
[407873553,1772863832346,-105.56694145,2.129e-05,2]
[407873555,1772863832358,-619.84912104,2.129e-05,2]
[407873637,1772863838437,-474.58393751,2.129e-05,2]
[407873638,1772863838447,-500.0,2.13e-05,2]
[407873639,1772863838457,-500.0,2.13e-05,2]
[407873640,1772863838466,-500.0,2.13e-05,2]
[407873641,1772863838475,-500.0,2.13e-05,2]
[407873642,1772863838485,-500.0,2.13e-05,2]
[407873643,1772863838496,-33019.7176457,2.322e-05,2]
[407873644,1772863838506,-1805.1729118,2.322e-05,2]
[407873645,1772863838516,-420.0,2.342e-05,2]
[407873646,1772863838527,-420.0,2.342e-05,2]
[407873648,1772863838537,-420.0,2.342e-05,2]
[407873649,1772863838547,-420.0,2.342e-05,2]
[407873650,1772863838556,-1680.0,2.342e-05,2]
[407873651,1772863838566,-30849.92570558,2.35e-05,2]
[407873652,1772863838578,-5012.58748994,2.35e-05,2]
[407873653,1772863838590,-206424.92840642,2.35e-05,2]
[407873654,1772863838599,-300.0,2.396e-05,2]
[407873655,1772863838609,-300.0,2.396e-05,2]
[407873656,1772863838619,-300.0,2.396e-05,2]
[407873657,1772863838628,-300.0,2.396e-05,2]
[407873658,1772863838638,-300.0,2.396e-05,2]
[407873659,1772863838647,-300.0,2.396e-05,2]
[407873660,1772863838656,-300.0,2.396e-05,2]
[407873661,1772863838666,-300.0,2.396e-05,2]
[407873662,1772863838676,-300.0,2.396e-05,2]
[407873663,1772863838685,-300.0,2.396e-05,2]
[407873664,1772863838695,-300.0,2.396e-05,2]
[407873665,1772863838704,-300.0,2.396e-05,2]
[407873666,1772863838716,-300.0,2.396e-05,2]
[407873667,1772863838726,-300.0,2.396e-05,2]
[407873668,1772863838736,-300.0,2.396e-05,2]
[407873669,1772863838746,-600.0,2.396e-05,2]
[407873670,1772863838756,-1957.856,2.406e-05,2]
[407873671,1772863838765,-250.0,2.406e-05,2]
[407873672,1772863838775,-250.0,2.406e-05,2]
[407873673,1772863838784,-500.0,2.406e-05,2]
[407873674,1772863838794,-250.0,2.406e-05,2]
[407873675,1772863838803,-250.0,2.406e-05,2]
[407873676,1772863838812,-500.0,2.406e-05,2]
[407873677,1772863838821,-250.0,2.406e-05,2]
[407873678,1772863838830,-250.0,2.406e-05,2]
[407873679,1772863838839,-500.0,2.406e-05,2]
[407873680,1772863838848,-500.0,2.406e-05,2]
[407873681,1772863838858,-250.0,2.406e-05,2]
[407873682,1772863838867,-250.0,2.406e-05,2]
[407873683,1772863838876,-250.0,2.406e-05,2]
[407873684,1772863838886,-500.0,2.406e-05,2]
[407873685,1772863838895,-250.0,2.406e-05,2]
[407873686,1772863838904,-250.0,2.406e-05,2]
[407873687,1772863838914,-500.0,2.406e-05,2]
[407873688,1772863838924,-250.0,2.406e-05,2]
[407873689,1772863838933,-162.380719,2.406e-05,2]
[407873690,1772863838943,-250.0,2.406e-05,2]
[407873691,1772863838952,-250.0,2.406e-05,2]
[407873692,1772863838961,-500.0,2.406e-05,2]
[407873693,1772863838971,-250.0,2.406e-05,2]
[407873694,1772863838980,-168.3888056,2.406e-05,2]
[407873695,1772863838989,-363.24438959,2.406e-05,2]
[407873696,1772863839003,-250.0,2.406e-05,2]
[407873697,1772863839013,-500.0,2.406e-05,2]
[407873698,1772863839022,-250.0,2.406e-05,2]
[407873699,1772863839031,-250.0,2.406e-05,2]
[407873700,1772863839041,-500.0,2.406e-05,2]
[407873701,1772863839051,-250.0,2.406e-05,2]
[407873702,1772863839060,-174.61919141,2.406e-05,2]
[407873703,1772863839072,-500.0,2.406e-05,2]
[407873704,1772863839081,-250.0,2.406e-05,2]
[407873705,1772863839090,-250.0,2.406e-05,2]
[407873706,1772863839099,-181.08010149,2.406e-05,2]
[407873707,1772863839108,-500.0,2.406e-05,2]
[407873708,1772863839117,-250.0,2.406e-05,2]
[407873709,1772863839126,-250.0,2.406e-05,2]
[407873710,1772863839136,-187.78006525,2.406e-05,2]
[407873711,1772863839145,-500.0,2.406e-05,2]
[407873712,1772863839154,-250.0,2.406e-05,2]
[407873713,1772863839163,-162.380719,2.406e-05,2]
[407873714,1772863839172,-250.0,2.406e-05,2]
[407873715,1772863839182,-531.87199517,2.406e-05,2]
[407873716,1772863839191,-250.0,2.406e-05,2]
[407873717,1772863839200,-250.0,2.406e-05,2]
[407873718,1772863839210,-250.0,2.406e-05,2]
[407873719,1772863839219,-194.72792766,2.406e-05,2]
[407873720,1772863839228,-250.0,2.406e-05,2]
[407873721,1772863839237,-250.0,2.406e-05,2]
[407873722,1772863839246,-201.93286099,2.406e-05,2]
[407873723,1772863839255,-209.40437684,2.406e-05,2]
[407873724,1772863839264,-250.0,2.406e-05,2]
[407873725,1772863839274,-217.15233878,2.406e-05,2]
[407873726,1772863839283,-250.0,2.406e-05,2]
[407873727,1772863839292,-225.18697532,2.406e-05,2]
[407873728,1772863839302,-156.587,2.406e-05,2]
[407873729,1772863839311,-250.0,2.406e-05,2]
[407873730,1772863839320,-233.51889341,2.406e-05,2]
[407873731,1772863839329,-250.0,2.406e-05,2]
[407873732,1772863839339,-242.15909246,2.406e-05,2]
[407873733,1772863839348,-251.11897888,2.406e-05,2]
[407873734,1772863839357,-151.0,2.406e-05,2]
[407873735,1772863839366,-260.4103811,2.406e-05,2]
[407873736,1772863839375,-2150.738,2.406e-05,2]
[407873737,1772863839385,-270.0455652,2.406e-05,2]
[407873738,1772863839398,-250.0,2.406e-05,2]
[407873739,1772863839407,-280.03725112,2.406e-05,2]
[407873740,1772863839417,-290.39862941,2.406e-05,2]
[407873741,1772863839426,-301.1433787,2.406e-05,2]
[407873742,1772863839436,-250.0,2.406e-05,2]
[407873743,1772863839445,-255.98680988,2.406e-05,2]
[407873744,1772863839455,-537.6845,2.406e-05,2]
[407873745,1772863839464,-250.0,2.406e-05,2]
[407873746,1772863839473,-500.0,2.406e-05,2]
[407873747,1772863839483,-519.91342999,2.406e-05,2]
[407873748,1772863839494,-445.202766,2.406e-05,2]
[407873749,1772863839513,-2030.296672,2.461e-05,2]
[407873750,1772863839522,-2105.41764886,2.516e-05,2]
[407873751,1772863839532,-189.858,2.566e-05,2]
[407873752,1772863839542,-2183.31810187,2.571e-05,2]
[407873753,1772863839552,-587.0,2.576e-05,2]
[407873754,1772863839561,-1200.0,2.576e-05,2]
[407873755,1772863839571,-1805.1729118,2.586e-05,2]
[407873756,1772863839581,-2264.10087164,2.626e-05,2]
[407873757,1772863839598,-720.0,2.636e-05,2]
[407873758,1772863839616,-359.85,2.659e-05,2]
[407873759,1772863839626,-7367.6948863,2.661e-05,2]
[407873760,1772863839636,-2193.53822805,2.681e-05,2]
[407873761,1772863839646,-1643.9549399,2.736e-05,2]
[407873762,1772863839656,-10000.0,2.74e-05,2]
[407873763,1772863839665,-151.0,2.74e-05,2]
[407873764,1772863839675,-151.0,2.74e-05,2]
[407873765,1772863839684,-500.0,2.75e-05,2]
[407873766,1772863839694,-634.08549821,2.794e-05,2]
[407873767,1772863839704,-800.0,2.804e-05,2]
[407873768,1772863839714,-433.0,2.834e-05,2]
[407873769,1772863839723,-1805.1729118,2.849e-05,2]
[407873770,1772863839733,-800.0,2.896e-05,2]
[407873771,1772863839742,-864.0,2.899e-05,2]
[407873772,1772863839752,-282.52829947,2.9e-05,2]
[407873773,1772863839761,-2256.394,2.917e-05,2]
[407873774,1772863839771,-639.0,2.917e-05,2]
[407873775,1772863839781,-1391.0,2.917e-05,2]
[407873776,1772863839790,-732.0,2.917e-05,2]
[407873777,1772863839800,-243.97,2.917e-05,2]
[407873778,1772863839809,-434.0,2.917e-05,2]
[407873779,1772863839818,-338.0,2.947e-05,2]
[407873780,1772863839827,-338.0,2.947e-05,2]
[407873781,1772863839837,-338.0,2.947e-05,2]
[407873782,1772863839847,-338.0,2.947e-05,2]
[407873783,1772863839856,-338.0,2.947e-05,2]
[407873784,1772863839865,-338.0,2.947e-05,2]
[407873785,1772863839875,-338.0,2.947e-05,2]
[407873786,1772863839885,-338.0,2.947e-05,2]
[407873787,1772863839896,-338.0,2.947e-05,2]
[407873788,1772863839905,-338.0,2.947e-05,2]
[407873789,1772863839915,-338.0,2.947e-05,2]
[407873790,1772863839924,-338.0,2.947e-05,2]
[407873791,1772863839934,-338.0,2.947e-05,2]
[407873792,1772863839944,-338.0,2.947e-05,2]
[407873793,1772863839954,-338.0,2.947e-05,2]
[407873794,1772863839963,-338.0,2.947e-05,2]
[407873795,1772863839973,-338.0,2.947e-05,2]
[407873796,1772863839983,-338.0,2.947e-05,2]
[407873797,1772863839994,-338.0,2.947e-05,2]
[407873798,1772863840005,-338.0,2.947e-05,2]
[407873799,1772863840015,-338.0,2.947e-05,2]
[407873800,1772863840025,-338.0,2.947e-05,2]
[407873801,1772863840036,-338.0,2.947e-05,2]
[407873802,1772863840047,-338.0,2.947e-05,2]
[407873803,1772863840057,-229.02122179,2.947e-05,2]
[407873804,1772863840067,-162.77976589,2.954e-05,2]
[407873805,1772863840076,-151.9187738,2.954e-05,2]
[407873806,1772863840086,-2230.315306,2.954e-05,2]
[407873807,1772863840095,-557.5788265,2.954e-05,2]
[407873808,1772863840105,-461.67526834,2.954e-05,2]
[407873809,1772863840114,-800.0,2.968e-05,2]
[407873810,1772863840124,-1204.0346894,2.97e-05,2]
[407873811,1772863840133,-500.28403301,2.973e-05,2]
[407873812,1772863840142,-500.0,2.973e-05,2]
[407873813,1772863840151,-500.0,2.973e-05,2]
[407873814,1772863840161,-500.0,2.973e-05,2]
[407873815,1772863840170,-500.0,2.973e-05,2]
[407873816,1772863840179,-384.00904845,2.973e-05,2]
[407873817,1772863840189,-500.0,2.973e-05,2]
[407873818,1772863840198,-500.16979198,2.973e-05,2]
[407873820,1772863840208,-500.0,2.973e-05,2]
[407873821,1772863840217,-500.0,2.973e-05,2]
[407873822,1772863840226,-500.31579848,2.973e-05,2]
[407873823,1772863840237,-500.0,2.973e-05,2]
[407873824,1772863840248,-500.0,2.973e-05,2]
[407873825,1772863840257,-406.9258917,2.973e-05,2]
[407873826,1772863840269,-500.0,2.973e-05,2]
[407873827,1772863840279,-1741.84699546,2.989e-05,2]
[407873828,1772863840290,-26047.87333846,3e-05,2]
[407873830,1772863840299,-289023.12260586,3e-05,2]
[407873832,1772863840310,-436437.08383185,3e-05,2]
[407873834,1772863840320,-241209.07090351,3e-05,2]
[407873836,1772863840330,-970.0,3e-05,2]
[407873839,1772863840340,-2698.0,3.1e-05,30]
[407873840,1772863840351,-338.0,3.1e-05,2]
[407873841,1772863840361,-338.0,3.1e-05,2]
[407873842,1772863840372,-338.0,3.1e-05,2]
[407873843,1772863840384,-338.0,3.1e-05,2]
[407873844,1772863840395,-338.0,3.1e-05,2]
[407873845,1772863840404,-338.0,3.1e-05,2]
[407873846,1772863840414,-338.0,3.1e-05,2]
[407873847,1772863840426,-338.0,3.1e-05,2]
[407873848,1772863840435,-338.0,3.1e-05,2]
[407873849,1772863840445,-338.0,3.1e-05,2]
[407873850,1772863840454,-338.0,3.1e-05,2]
[407873851,1772863840463,-338.0,3.1e-05,2]
[407873852,1772863840473,-338.0,3.1e-05,2]
[407873853,1772863840483,-338.0,3.1e-05,2]
[407873854,1772863840493,-342.2163082,3.1e-05,2]
[407873855,1772863840505,-181.28165188,3.1e-05,2]
[407873856,1772863840516,-3000.0,3.11e-05,30]
[407873857,1772863840526,-1805.1729118,3.113e-05,2]
[407873858,1772863840535,-3000.0,3.12e-05,30]
[407873859,1772863840545,-3000.0,3.13e-05,30]
[407873860,1772863840554,-3000.0,3.14e-05,30]
[407873861,1772863840563,-4963.744213,3.15e-05,30]
[407873862,1772863840573,-1000.0,3.189e-05,2]
[407873863,1772863840582,-439.74850799,3.195e-05,2]
[407873864,1772863840597,-652.46108487,3.2e-05,2]
[407873865,1772863840606,-444.0,3.31e-05,2]
[407873866,1772863840615,-375.24,3.4e-05,2]
[407873867,1772863840624,-2312.83697232,3.502e-05,2]
[407873868,1772863840633,-578.20924308,3.502e-05,2]
[407873869,1772863840642,-478.75725327,3.502e-05,2]
[407873870,1772863840652,-1000.0,3.508e-05,2]
[407873871,1772863840661,-244.0,3.508e-05,2]
[407873872,1772863840671,-1000.0,3.521e-05,2]
[407873873,1772863840680,-765.08352427,3.521e-05,2]
[407873874,1772863840689,-1000.0,3.521e-05,2]
[407873875,1772863840698,-1000.0,3.521e-05,2]
[407873876,1772863840707,-500.31508605,3.521e-05,2]
[407873877,1772863840716,-1000.0,3.521e-05,2]
[407873878,1772863840724,-1000.0,3.521e-05,2]
[407873879,1772863840733,-1000.0,3.521e-05,2]
[407873880,1772863840742,-893.288,3.762e-05,2]
[407873881,1772863840751,-168.3888056,3.775e-05,2]
[407873882,1772863840760,-1000.0,3.859e-05,2]
[407873883,1772863840769,-492.0,3.859e-05,2]
[407873884,1772863840778,-160.0,4.004e-05,3]
[407873885,1772863840787,-470.94345726,4.04e-05,2]
[407873886,1772863840796,-2398.4119403,4.05e-05,2]
[407873887,1772863840804,-599.60298507,4.05e-05,2]
[407873888,1772863840813,-496.47127164,4.05e-05,2]
[407873889,1772863840822,-1500.0,4.068e-05,2]
[407873890,1772863840830,-1500.0,4.068e-05,2]
[407873892,1772863840839,-1500.0,4.068e-05,2]
[407873894,1772863840848,-1500.0,4.068e-05,2]
[407873896,1772863840856,-1500.0,4.068e-05,2]
[407873897,1772863840865,-1500.0,4.068e-05,2]
[407873898,1772863840874,-1000.0,4.245e-05,2]
[407873899,1772863840883,-791.0,4.245e-05,2]
[407873900,1772863840892,-160.0,4.415e-05,4]
[407873901,1772863840901,-160.0,4.415e-05,5]
[407873902,1772863840910,-1352.95139634,4.5e-05,2]
[407873903,1772863840919,-2487.15318209,4.598e-05,2]
[407873904,1772863840927,-621.78829552,4.598e-05,2]
[407873905,1772863840936,-514.84070869,4.598e-05,2]
[407873906,1772863840945,-2000.0,4.616e-05,2]
[407873907,1772863840954,-2000.0,4.616e-05,2]
[407873908,1772863840963,-2000.0,4.616e-05,2]
[407873909,1772863840971,-2000.0,4.616e-05,2]
[407873910,1772863840980,-2000.0,4.616e-05,2]
[407873911,1772863840989,-2000.0,4.616e-05,2]